[Event "51st La Roda Open 2025"]
[Site "La Roda"]
[Date "2025.04.16"]
[Round "3.1"]
[White "Pranav Vijay"]
[Black "Goncalves, Samuel Jesus P"]
[Result "1-0"]
[Annotator "RC"]
[ECO "B13"]
[WhiteElo "2252"]
[BlackElo "2248"]
[PlyCount "89"]
[EventDate "2025.04.15"]
[EventType "swiss"]
[EventCountry "ESP"]
[SourceTitle "playchess.com"]
[Source "ChessBase"]
[SourceQuality "1"]
[TimeControl "5400+30"]

1. e4 {[%emt 0:00:05]} c6 {[%emt 0:00:11]} 2. d4 {[%emt 0:00:06]} d5 {[%emt 0:00:07]} 3. exd5 {[%emt 0:00:06]} cxd5 {[%emt 0:00:11]} 4. Bd3 {[%emt 0:00:06]} Nc6 {[%emt 0:00:12]} 5. c3 {[%emt 0:00:05]} Nf6 {[%emt 0:03:05]} 6. Bf4 {[%emt 0:00:13]} Bg4 {[%emt 0:00:23]} 7. Qb3 {[%emt 0:00:07]} Qd7 {[%emt 0:00:06]} 8. Nd2 {[%emt 0:00:15]} e6 {[%emt 0:00:10]} 9. Ngf3 {[%emt 0:00:06]} Bd6 {[%emt 0:00:15]} 10. Bxd6 {[%emt 0:00:24]} Qxd6 {[%emt 0:00:09]} 11. O-O {[%emt 0:00:06]} O-O {[%emt 0:00:08]} 12. Rfe1 {[%emt 0:00:13]} Ne7 {[%emt 0:00:20]} 13. Ne5 {[%emt 0:13:23]} Bf5 {[%emt 0:00:20]} 14. Bf1 {[%emt 0:04:23]} Rab8 {[%emt 0:18:09]} 15. a4 {[%emt 0:01:36]} Nc6 {[%emt 0:04:43]} 16. Qd1 {[%emt 0:05:29]} h6 {[%emt 0:07:13]} 17. Bd3 {[%emt 0:08:19]} Ne7 {[%emt 0:13:04]} 18. Qf3 {[%emt 0:03:44]} a6 {[%emt 0:04:30]} 19. a5 {[%emt 0:04:15]} Qc7 {[%emt 0:01:44]} 20. Qg3 {[%emt 0:05:31]} Rfc8 {[%emt 0:05:36]} 21. Nb3 {[%emt 0:04:50]} Bxd3 {[%emt 0:15:55]} 22. Nxd3 {[%emt 0:00:10]} Qc4 {[%emt 0:00:54]} 23. Nbc5 {[%emt 0:03:47]} b6 {[%emt 0:07:54]} 24. axb6 {[%emt 0:09:35]} Rxb6 {[%emt 0:00:37]} 25. Ra4 {[%emt 0:00:49]} Qb5 {[%emt 0:00:08]} 26. Rea1 {[%emt 0:00:20]} Ne4 {[%emt 0:02:17]} 27. Qf3 {[%emt 0:00:54]} Nd2 {[%emt 0:11:43]} 28. Qd1 {[%emt 0:01:19]} Nc4 {[%emt 0:01:33]} 29. b3 {[%emt 0:03:16]} Nd6 {[%emt 0:00:15]} 30. Rb4 {[%emt 0:00:30]} Qc6 {[%emt 0:00:20]} 31. Ne5 {[%emt 0:00:17]} Qc7 {[%emt 0:00:18]} 32. Rxb6 {[%emt 0:00:04]} Qxb6 {[%emt 0:00:20]} 33. Rxa6 {[%emt 0:00:07]} Qc7 {[%emt 0:00:57]} 34. Qa1 {[%emt 0:00:24]} Ne4 {[%emt 0:01:38]} 35. Ra7 {[%emt 0:00:53]} Qd8 {[%emt 0:00:23]} 36. b4 {[%emt 0:00:25]} Qe8 {[%emt 0:01:37]} 37. f3 {[%emt 0:06:42]} Nf6 {[%emt 0:00:38]} 38. Qa6 {[%emt 0:02:02]} Nc6 {[%emt 0:00:47]} 39. Nxc6 {[%emt 0:00:08]} Rxc6 {[%emt 0:00:06]} 40. Qa4 {[%emt 0:00:04]} Rc8 {[%emt 0:00:20]} 41. Qxe8+ {[%emt 0:00:14]} Nxe8 {[%emt 0:00:05]} 42. b5 {[%emt 0:00:30]} Nd6 {[%emt 0:01:31]} 43. b6 {[%emt 0:00:15]} g5 {[%emt 0:00:30]} 44. b7 {[%emt 0:00:18]} Rd8 {[%emt 0:00:02]} 45. Ra6 {[%emt 0:00:16]} 1-0

[Event "51st La Roda Open 2025"]
[Site "La Roda"]
[Date "2025.04.16"]
[Round "3.2"]
[White "Garcia Jimenez, Santiago"]
[Black "Gumularz, Szymon"]
[Result "1/2-1/2"]
[Annotator "TA"]
[ECO "B23"]
[WhiteElo "2241"]
[BlackElo "2604"]
[PlyCount "66"]
[EventDate "2025.04.15"]
[EventType "swiss"]
[EventCountry "ESP"]
[SourceTitle "playchess.com"]
[Source "ChessBase"]
[SourceQuality "1"]
[TimeControl "5400+30"]

{[%evp 9,66,40,42,20,46,18,33,17,15,21,27,10,20,0,25,0,10,18,14,4,22,11,11,5,14,0,0,0,0,0,0,2,9,6,22,15,37,34,54,30,34,10,21,0,0,0,0,0,0,0,0,0,0,0,0,0,0,0,0]} 1. e4 {[%emt 0:02:10]} c5 {[%emt 0:00:13]} 2. Nc3 {[%emt 0:00:21]} e6 {[%emt 0:00:08]} 3. Nge2 {[%emt 0:00:54]} Nc6 {[%emt 0:00:37]} 4. g3 {[%emt 0:01:04]} a6 {[%emt 0:03:09]} 5. Bg2 {[%emt 0:00:07]} b5 {[%emt 0:00:05]} 6. O-O {[%emt 0:00:09] B23: Closed Sicilian: Lines without g3.} Bb7 {[%emt 0:00:04]} 7. Re1 {[%emt 0:00:41]} Nge7 {[%emt 0:02:28]} 8. d4 {[%emt 0:05:24] White is slightly better.} Nxd4 {[%emt 0:00:30]} 9. Nxd4 {[%emt 0:00:08]} cxd4 {[%emt 0:00:05]} 10. Qxd4 {[%emt 0:00:07]} Rc8 {[%emt 0:08:17]} 11. a4 $146 {[%emt 0:04:33]} (11. Qd1 Ng6 12. a4 b4 13. Nd5 Bc5 14. Be3 Bxe3 15. Nxe3 O-O 16. Qd6 a5 17. Rad1 {½-½ Sindarov,J (2658)-Kamsky,G (2641) Orsay Blitz op 2023 (7)}) 11... Nc6 {[%emt 0:01:17]} 12. Qd1 {[%emt 0:05:11]} (12. Qe3 $5) 12... b4 {[%emt 0:04:01] [#]} 13. Nd5 {[%emt 0:00:46]} Bc5 {[%emt 0:05:20][%cal Oc6e5] Inhibits Be3.} 14. Be3 {[%emt 0:02:20]} d6 {[%emt 0:00:35]} 15. Bxc5 {[%emt 0:07:30]} dxc5 {[%emt 0:00:10]} 16. Ne3 {[%emt 0:01:13]} Na5 {[%emt 0:00:18] Against Nc4} 17. Qg4 {[%emt 0:05:49] Not much happening anymore} O-O {[%emt 0:00:24]} 18. Rad1 {[%emt 0:00:44]} Qc7 {[%emt 0:00:22]} 19. Qh5 {[%emt 0:10:11]} Rfd8 {[%emt 0:03:58]} 20. Rxd8+ {[%emt 0:05:14]} Rxd8 {[%emt 0:00:16]} 21. Rd1 {[%emt 0:00:10]} Rxd1+ {[%emt 0:00:37]} 22. Qxd1 {[%emt 0:00:28][%cal Oe4e5]} h6 {[%emt 0:00:27]} 23. Qd3 {[%emt 0:04:32]} h5 {[%emt 0:34:23]} 24. h4 {[%emt 0:10:01]} g6 {[%emt 0:00:08]} 25. Kh2 {[%emt 0:08:13]} Kg7 {[%emt 0:03:38] The position is equal.} 26. Nc4 {[%emt 0:03:08]} Nxc4 {[%emt 0:02:32]} 27. Qxc4 $11 {[%emt 0:00:47][%mdl 4096] Endgame KQB-KQB} e5 {[%emt 0:02:09]} 28. c3 {[%emt 0:01:16]} bxc3 {[%emt 0:03:37]} 29. Qxc3 {[%emt 0:02:55]} Qd6 {[%emt 0:00:10]} 30. a5 {[%emt 0:04:26]} Bc6 {[%emt 0:00:11]} 31. f4 {[%emt 0:00:21]} f6 {[%emt 0:00:16]} 32. fxe5 {[%emt 0:00:13]} fxe5 {[%emt 0:00:08]} 33. Qb3 {[%emt 0:03:22] [#] And now Qb6 would win.} Qd4 {[%emt 0:09:17] Weighted Error Value: White=0.08 (flawless) /Black=0.06 (flawless)   Inaccurate:     	White=1     	Black=1      OK:         	White=11    	Black=9      Best:        	---       	Black=2} 1/2-1/2

[Event "51st La Roda Open 2025"]
[Site "La Roda"]
[Date "2025.04.16"]
[Round "3.3"]
[White "Albornoz Cabrera, Carlos Daniel"]
[Black "Cuellar Montes, Alejandro"]
[Result "1-0"]
[Annotator "TA"]
[ECO "C88"]
[WhiteElo "2561"]
[BlackElo "2200"]
[PlyCount "55"]
[EventDate "2025.04.15"]
[EventType "swiss"]
[EventCountry "ESP"]
[SourceTitle "playchess.com"]
[Source "ChessBase"]
[SourceQuality "1"]
[TimeControl "5400+30"]

{[%evp 18,55,46,13,25,0,2,2,0,0,0,0,6,0,34,47,29,38,81,50,60,64,120,116,167,172,170,179,247,244,676,657,700,385,703,699,669,652,29998,29999]} 1. e4 {[%emt 0:00:02]} e5 {[%emt 0:00:45]} 2. Nf3 {[%emt 0:00:05]} Nc6 {[%emt 0:00:04]} 3. Bb5 {[%emt 0:00:03][%cal Bf1b5,Bb5a4,Ba4b3][%mdl 32]} a6 {[%emt 0:00:06]} 4. Ba4 {[%emt 0:00:03]} Nf6 {[%emt 0:00:04]} 5. O-O {[%emt 0:00:04]} Be7 {[%emt 0:00:06]} 6. Re1 {[%emt 0:00:03]} b5 {[%emt 0:00:08]} 7. Bb3 {[%emt 0:00:03]} O-O {[%emt 0:00:06]} 8. a4 {[%emt 0:00:02]} Bb7 {[%emt 0:00:51]} 9. d3 {[%emt 0:00:05]} d6 {[%emt 0:00:53]} 10. Nbd2 {[%emt 0:00:14][%cal Bb1d2,Bd2f1,Bf1e3,Be3f5][%mdl 32]} Nd7 {[%emt 0:01:45][%cal Bf6d7,Bd7c5,Bc5a6][%mdl 32]} 11. Nf1 {[%emt 0:00:06]} Nc5 {[%emt 0:00:48]} 12. axb5 {[%emt 0:00:24]} axb5 {[%emt 0:00:28] The position is equal.} 13. Rxa8 {[%emt 0:00:05]} Qxa8 {[%emt 0:00:09]} 14. Bd5 {[%emt 0:00:04]} Nd8 {[%emt 0:01:58]} 15. Ne3 {[%emt 0:00:06]} Nde6 {[%emt 0:18:54]} 16. b4 {[%emt 0:00:24]} Na6 {[%emt 0:05:26]} 17. c3 {[%emt 0:03:45]} c6 {[%emt 0:08:56]} 18. Bb3 {[%emt 0:05:10]} Re8 {[%emt 0:15:36]} 19. Nf5 {[%emt 0:05:48]} Qd8 {[%emt 0:03:55]} ({Better is} 19... c5 $14) 20. d4 $16 {[%emt 0:07:06] White is much more active.} exd4 {[%emt 0:09:52]} (20... Bf6 $16 {was called for.}) 21. N3xd4 $18 {[%emt 0:00:25]} Nxd4 {[%emt 0:00:26]} 22. Qxd4 {[%emt 0:02:04]} (22. Nxd4 $6 Bf6 $16) 22... Bf8 {[%emt 0:01:08] [#]} (22... Bf6 {is a better defense.} 23. Qd3 (23. Qxd6 Bc8 $16) 23... d5) 23. Re3 $1 $40 {[%emt 0:08:16][%cal Of5h6,Be1e3,Be3f3,Bf3f6,Bf6f8][%mdl 160] White is out for blood.} g6 $2 {[%emt 0:05:05] [#]} ({Stronger than} 23... c5 24. Nh6+ Kh8 25. Nxf7+ Kg8 26. Nxd6+ (26. Nxd8+ c4 $18) 26... c4 27. Bxc4+ (27. Nxb7 Qxd4 28. cxd4 cxb3 $18) 27... Kh8 28. Nf7+ (28. Nxb7 Qxd4 29. cxd4 bxc4 $18) 28... Kg8 29. Nxd8+) (23... Re5 24. Rg3 g6) 24. Rf3 $1 {[%emt 0:01:46] White threatens Nh6+ and mate.} d5 {[%emt 0:12:13] Hoping for ...c5.} 25. Nh6+ {[%emt 0:00:51]} Bxh6 {[%emt 0:00:08]} 26. Bxh6 {[%emt 0:00:04]} f6 {[%emt 0:00:11] Black is weak on the dark squares} 27. Rxf6 {[%emt 0:00:32][%cal Of6f8] Threatening mate with Rf8+!} c5 {[%emt 0:01:58] [#]} 28. Rf8+ $1 {[%emt 1:06:50][%mdl 512] Weighted Error Value: White=0.05 (flawless) /Black=0.87.  Mistake:       	---       	Black=4      Inaccurate:     	White=1     	Black=2      OK:         	White=6     	Black=4      Best:        	White=1     	Black=2      Strong:       	White=1     	---} 1-0

[Event "51st La Roda Open 2025"]
[Site "La Roda"]
[Date "2025.04.16"]
[Round "3.4"]
[White "Gonzalez Lema, Carlos"]
[Black "Fier, Alexandr"]
[Result "0-1"]
[Annotator "TA"]
[ECO "E20"]
[WhiteElo "2200"]
[BlackElo "2534"]
[PlyCount "62"]
[EventDate "2025.04.15"]
[EventType "swiss"]
[EventCountry "ESP"]
[SourceTitle "playchess.com"]
[Source "ChessBase"]
[SourceQuality "1"]
[TimeControl "5400+30"]

{[%evp 10,62,0,2,24,-11,-8,-14,-17,-14,-12,-142,-134,-179,-171,-204,-191,-201,-203,-209,-193,-207,-174,-384,-369,-566,-535,-752,-676,-662,-689,-673,-658,-1062,-1074,-966,-730,-1497,-1501,-1411,-1393,-1272,-1227,-29968,-12850,-1955,-1543,-1529,-1511,-1485,-1441,-29995,-29996,-29996,409]} 1. d4 {[%emt 0:00:02][%cal Bd2d4,Bd4d5][%mdl 32]} Nf6 {[%emt 0:00:05]} 2. c4 {[%emt 0:00:09]} e6 {[%emt 0:00:04]} 3. Nc3 {[%emt 0:00:05]} Bb4 {[%emt 0:00:03]} 4. f3 {[%emt 0:00:07]} c5 {[%emt 0:00:03]} 5. d5 {[%emt 0:00:08]} d6 {[%emt 0:00:04]} 6. e4 {[%emt 0:04:05]} b5 {[%emt 0:00:59] E20: Nimzo-Indian: 4 g3 and 4 f3.} 7. Bd2 {[%emt 0:02:16]} a6 {[%emt 0:00:05]} 8. Nge2 {[%emt 0:00:21]} O-O {[%emt 0:04:48] The position is equal.} 9. Nf4 {[%emt 0:00:43]} exd5 {[%emt 0:01:03]} 10. exd5 $146 {[%emt 0:00:29] [#]} (10. cxd5 $11 {remains equal.} Ba5 11. a4) (10. cxd5 Nbd7 11. a4 bxa4 12. Qxa4 Ne5 13. Be2 Rb8 14. O-O c4 15. Qc2 g5 16. Nh3 Bxh3 17. gxh3 {½-½ Mamedyarov,S (2782)-Aronian,L (2782) Aimchess US Rapid KO 2021 (1.23)}) 10... Nbd7 $1 $17 {[%emt 0:03:01]} 11. a4 {[%emt 0:10:07]} Re8+ {[%emt 0:01:12]} 12. Kf2 {[%emt 0:00:12]} bxc4 {[%emt 0:00:07]} 13. Bxc4 {[%emt 0:00:57]} Ne5 {[%emt 0:00:04]} 14. Be2 {[%emt 0:00:12]} c4 {[%emt 0:02:31] Dodges Nd3} 15. h4 {[%emt 0:01:41]} Bc5+ {[%emt 0:01:12]} 16. Kg3 $2 {[%emt 0:01:18]} (16. Kf1) 16... Rb8 $19 {[%emt 0:00:24]} 17. a5 {[%emt 0:11:16]} (17. Ra2 {was necessary.}) 17... Rxb2 {[%emt 0:04:10]} 18. Na4 {[%emt 0:00:07]} Nd3 {[%emt 0:00:18]} 19. Bxd3 {[%emt 0:11:21]} Rxd2 {[%emt 0:00:11]} 20. Qxd2 {[%emt 0:00:11] Nxc5 would now be deadly.} Be3 {[%emt 0:00:04] This pair of bishops is nice.} ({Not} 20... cxd3 21. Nxc5 dxc5 22. Rhe1 $16 (22. Qxd3 Qd6 $17)) 21. Bxh7+ {[%emt 0:00:22]} Kxh7 {[%emt 0:02:34]} 22. Qc2+ {[%emt 0:02:23]} Kg8 {[%emt 0:00:03] and ...Bxf4+ should not be overlooked} 23. Ne6 {[%emt 0:08:27]} Nh5+ {[%emt 0:05:28]} 24. Kh3 {[%emt 0:00:06]} Nf4+ {[%emt 0:00:03]} 25. Kg3 {[%emt 0:00:25]} fxe6 {[%emt 0:00:05]} 26. Rae1 {[%emt 0:01:55]} Nh5+ {[%emt 0:00:15]} 27. Kh3 {[%emt 0:00:08]} exd5+ {[%emt 0:01:02]} 28. g4 {[%emt 0:00:04]} Qf6 {[%emt 0:01:20]} 29. Rhf1 {[%emt 0:06:32]} Kf7 {[%emt 0:00:16] ( -> ...Nf4+)} 30. Nc3 {[%emt 0:02:40]} Nf4+ {[%emt 0:00:05]} 31. Kg3 {[%emt 0:00:02] [#]} Qxh4+ $3 {[%emt 0:00:07][%mdl 33280] White did not feel at home in the position after the opening.   Weighted Error Value: White=1.36/Black=0.47 Loss on time!?  Mistake:       	White=3     	---        Inaccurate:     	White=3     	---        OK:         	White=2     	Black=10     Best:        	White=1     	---        Strong:       	---       	Black=1} 0-1

[Event "51st La Roda Open 2025"]
[Site "La Roda"]
[Date "2025.04.16"]
[Round "3.5"]
[White "Suleymenov, Alisher"]
[Black "Rumbos Garcia, Alejandro Daniel"]
[Result "1-0"]
[Annotator "RC"]
[ECO "B32"]
[WhiteElo "2478"]
[BlackElo "2178"]
[PlyCount "77"]
[EventDate "2025.04.15"]
[EventType "swiss"]
[EventCountry "ESP"]
[SourceTitle "playchess.com"]
[Source "ChessBase"]
[SourceQuality "1"]
[TimeControl "5400+30"]

1. e4 {[%emt 0:00:01]} c5 {[%emt 0:02:34]} 2. Nf3 {[%emt 0:00:09]} Nc6 {[%emt 0:00:06]} 3. d4 {[%emt 0:00:05]} cxd4 {[%emt 0:00:06]} 4. Nxd4 {[%emt 0:00:04]} e5 {[%emt 0:00:10]} 5. Nb5 {[%emt 0:00:07]} d6 {[%emt 0:00:06]} 6. c4 {[%emt 0:00:05]} Nf6 {[%emt 0:00:07]} 7. N1c3 {[%emt 0:08:47]} a6 {[%emt 0:00:11]} 8. Na3 {[%emt 0:00:05]} Be7 {[%emt 0:00:16]} 9. Nc2 {[%emt 0:02:13]} Be6 {[%emt 0:00:31]} 10. Be2 {[%emt 0:00:23]} O-O {[%emt 0:00:24]} 11. O-O {[%emt 0:00:05]} Rc8 {[%emt 0:00:12]} 12. Be3 {[%emt 0:00:31]} Na5 {[%emt 0:01:15]} 13. b3 {[%emt 0:00:09]} b5 {[%emt 0:01:13]} 14. Nd5 {[%emt 0:00:06]} Bxd5 {[%emt 0:07:49]} 15. exd5 {[%emt 0:00:05]} bxc4 {[%emt 0:01:27]} 16. b4 {[%emt 0:00:06]} Nb7 {[%emt 0:00:12]} 17. Na3 {[%emt 0:00:05]} a5 {[%emt 0:05:14]} 18. b5 {[%emt 0:02:12]} Nc5 {[%emt 0:02:56]} 19. Nxc4 {[%emt 0:04:00]} Nfd7 {[%emt 0:14:12]} 20. Qd2 {[%emt 0:12:31]} Ra8 {[%emt 0:15:33]} 21. Rab1 {[%emt 0:04:29]} Nb7 {[%emt 0:04:39]} 22. b6 {[%emt 0:06:56]} f5 {[%emt 0:02:24]} 23. Qc3 {[%emt 0:08:41]} f4 {[%emt 0:04:47]} 24. Bd2 {[%emt 0:00:24]} e4 {[%emt 0:00:21]} 25. Bg4 {[%emt 0:00:42]} Ndc5 {[%emt 0:00:14]} 26. Qh3 {[%emt 0:05:18]} Qe8 {[%emt 0:03:51]} 27. Bf5 {[%emt 0:02:27]} g6 {[%emt 0:05:59]} 28. Be6+ {[%emt 0:07:45]} Kg7 {[%emt 0:00:44]} 29. Nxa5 {[%emt 0:00:42]} Nxe6 {[%emt 0:15:09]} 30. Qxe6 {[%emt 0:07:01]} Nc5 {[%emt 0:01:44]} 31. Bc3+ {[%emt 0:01:33]} Bf6 {[%emt 0:00:06]} 32. Bxf6+ {[%emt 0:01:02]} Rxf6 {[%emt 0:00:06]} 33. Qxe8 {[%emt 0:00:14]} Rxe8 {[%emt 0:00:04]} 34. Nc6 {[%emt 0:04:14]} Rf7 {[%emt 0:01:54]} 35. a4 {[%emt 0:00:32]} Ra8 {[%emt 0:00:09]} 36. a5 {[%emt 0:00:24]} Rb7 {[%emt 0:00:42]} 37. Rfc1 {[%emt 0:07:36]} Na6 {[%emt 0:03:06]} 38. Rc4 {[%emt 0:00:49]} Nc7 {[%emt 0:00:48]} 39. Nd8 {[%emt 0:02:22]} 1-0

[Event "51st La Roda Open 2025"]
[Site "La Roda"]
[Date "2025.04.16"]
[Round "3.6"]
[White "Vehi Bach, Victor Manuel"]
[Black "Lopez Martinez, Josep Manuel"]
[Result "1/2-1/2"]
[Annotator "RC"]
[ECO "C48"]
[WhiteElo "2178"]
[BlackElo "2460"]
[PlyCount "20"]
[EventDate "2025.04.15"]
[EventType "swiss"]
[EventCountry "ESP"]
[SourceTitle "playchess.com"]
[Source "ChessBase"]
[SourceQuality "1"]
[TimeControl "5400+30"]

1. e4 {[%emt 0:00:02]} e5 {[%emt 0:02:24]} 2. Nf3 {[%emt 0:00:08]} Nc6 {[%emt 0:00:27]} 3. Nc3 {[%emt 0:00:08]} Nf6 {[%emt 0:00:40]} 4. Bb5 {[%emt 0:00:13]} Nd4 {[%emt 0:02:05]} 5. O-O {[%emt 0:01:49]} c6 {[%emt 0:03:08]} 6. Bd3 {[%emt 0:00:20]} Nxf3+ {[%emt 0:01:21]} 7. Qxf3 {[%emt 0:00:58]} d6 {[%emt 0:00:23]} 8. Be2 {[%emt 0:01:50]} Bg4 {[%emt 0:05:41]} 9. Qe3 {[%emt 0:01:00]} Qb6 {[%emt 0:00:47]} 10. d3 {[%emt 0:01:36]} Qxe3 {[%emt 0:02:42]} 1/2-1/2

[Event "51st La Roda Open 2025"]
[Site "La Roda"]
[Date "2025.04.16"]
[Round "3.7"]
[White "Kanov, Nikola"]
[Black "Portero Rubio, Martin"]
[Result "1-0"]
[Annotator "RC"]
[ECO "A08"]
[WhiteElo "2413"]
[BlackElo "2125"]
[PlyCount "67"]
[EventDate "2025.04.15"]
[EventType "swiss"]
[EventCountry "ESP"]
[SourceTitle "playchess.com"]
[Source "ChessBase"]
[SourceQuality "1"]
[TimeControl "5400+30"]

1. Nf3 {[%emt 0:00:05]} Nf6 {[%emt 0:05:40]} 2. g3 {[%emt 0:00:41]} c5 {[%emt 0:01:23]} 3. Bg2 {[%emt 0:01:44]} Nc6 {[%emt 0:04:13]} 4. O-O {[%emt 0:02:15]} e5 {[%emt 0:01:45]} 5. d3 {[%emt 0:01:09]} d5 {[%emt 0:00:32]} 6. e4 {[%emt 0:05:17]} dxe4 {[%emt 0:00:21]} 7. dxe4 {[%emt 0:00:17]} Qxd1 {[%emt 0:00:08]} 8. Rxd1 {[%emt 0:00:08]} Bg4 {[%emt 0:00:18]} 9. Na3 {[%emt 0:09:04]} Nd4 {[%emt 0:09:50]} 10. Rd3 {[%emt 0:01:08]} Bxf3 {[%emt 0:04:37]} 11. Bxf3 {[%emt 0:00:09]} O-O-O {[%emt 0:02:33]} 12. Bg5 {[%emt 0:04:20]} Be7 {[%emt 0:06:52]} 13. Bxf6 {[%emt 0:07:00]} Bxf6 {[%emt 0:04:11]} 14. c3 {[%emt 0:00:53]} Nc6 {[%emt 0:02:36]} 15. Bg4+ {[%emt 0:00:54]} Kc7 {[%emt 0:06:20]} 16. Nb5+ {[%emt 0:02:28]} Kb6 {[%emt 0:01:28]} 17. Nd6 {[%emt 0:00:57]} Be7 {[%emt 0:01:54]} 18. Nc4+ {[%emt 0:01:37]} Kc7 {[%emt 0:05:42]} 19. Rd5 {[%emt 0:01:27]} b6 {[%emt 0:12:17]} 20. Rad1 {[%emt 0:03:41]} f6 {[%emt 0:06:17]} 21. Rd7+ {[%emt 0:09:30]} Rxd7 {[%emt 0:05:16]} 22. Rxd7+ {[%emt 0:00:07]} Kb8 {[%emt 0:00:06]} 23. Ne3 {[%emt 0:00:28]} Rd8 {[%emt 0:05:27]} 24. Nd5 {[%emt 0:00:12]} Bf8 {[%emt 0:01:19]} 25. Rf7 {[%emt 0:00:22]} Na5 {[%emt 0:01:33]} 26. Nc7 {[%emt 0:01:39]} Bd6 {[%emt 0:01:39]} 27. Na6+ {[%emt 0:00:22]} Ka8 {[%emt 0:00:05]} 28. Be6 {[%emt 0:00:23]} Nc6 {[%emt 0:02:28]} 29. Bd5 {[%emt 0:00:28]} Rc8 {[%emt 0:00:11]} 30. b4 {[%emt 0:01:30]} cxb4 {[%emt 0:00:56]} 31. cxb4 {[%emt 0:00:09]} b5 {[%emt 0:00:17]} 32. a4 {[%emt 0:00:36]} bxa4 {[%emt 0:00:35]} 33. b5 {[%emt 0:00:07]} a3 {[%emt 0:00:04]} 34. bxc6 {[%emt 0:00:13]} 1-0

[Event "51st La Roda Open 2025"]
[Site "La Roda"]
[Date "2025.04.16"]
[Round "3.8"]
[White "Abdsattar, Alisher"]
[Black "Valmana Canto, Jaime"]
[Result "0-1"]
[Annotator "RC"]
[ECO "B33"]
[WhiteElo "2126"]
[BlackElo "2385"]
[PlyCount "68"]
[EventDate "2025.04.15"]
[EventType "swiss"]
[EventCountry "ESP"]
[SourceTitle "playchess.com"]
[Source "ChessBase"]
[SourceQuality "1"]
[TimeControl "5400+30"]

1. e4 {[%emt 0:00:02]} c5 {[%emt 0:07:06]} 2. Nf3 {[%emt 0:00:01]} Nc6 {[%emt 0:00:11]} 3. d4 {[%emt 0:00:04]} cxd4 {[%emt 0:00:07]} 4. Nxd4 {[%emt 0:00:00]} Nf6 {[%emt 0:00:10]} 5. Nc3 {[%emt 0:00:03]} e5 {[%emt 0:00:10]} 6. Ndb5 {[%emt 0:00:03]} d6 {[%emt 0:00:07]} 7. Nd5 {[%emt 0:00:02]} Nxd5 {[%emt 0:00:08]} 8. exd5 {[%emt 0:00:03]} Ne7 {[%emt 0:00:09]} 9. c4 {[%emt 0:00:04]} Ng6 {[%emt 0:00:06]} 10. h4 {[%emt 0:02:08]} h5 {[%emt 0:00:08]} 11. g3 {[%emt 0:04:41]} a6 {[%emt 0:03:10]} 12. Nc3 {[%emt 0:00:13]} Bg4 {[%emt 0:00:27]} 13. Be2 {[%emt 0:01:58]} Bxe2 {[%emt 0:01:35]} 14. Qxe2 {[%emt 0:00:05]} f5 {[%emt 0:00:42]} 15. Bd2 {[%emt 0:09:41]} Be7 {[%emt 0:02:30]} 16. O-O-O {[%emt 0:08:27]} Rc8 {[%emt 0:07:13]} 17. Kb1 {[%emt 0:03:37]} Qc7 {[%emt 0:00:16]} 18. b3 {[%emt 0:01:32]} Bf6 {[%emt 0:05:47]} 19. Rc1 {[%emt 0:08:29]} Nf8 {[%emt 0:05:02]} 20. f3 {[%emt 0:03:28]} g6 {[%emt 0:01:23]} 21. Qf2 {[%emt 0:13:11]} Nd7 {[%emt 0:03:53]} 22. g4 {[%emt 0:01:24]} Nc5 {[%emt 0:02:48]} 23. Rcg1 {[%emt 0:03:36]} b5 {[%emt 0:15:02]} 24. gxf5 {[%emt 0:02:44]} gxf5 {[%emt 0:02:22]} 25. cxb5 {[%emt 0:06:10]} Kf7 {[%emt 0:10:51]} 26. Qg2 {[%emt 0:04:43]} Rhg8 {[%emt 0:00:56]} 27. Qe2 {[%emt 0:01:44]} axb5 {[%emt 0:01:00]} 28. Qxb5 {[%emt 0:03:28]} Rb8 {[%emt 0:03:05]} 29. Qc6 {[%emt 0:06:22]} Rgc8 {[%emt 0:02:34]} 30. Qxc7+ {[%emt 0:02:30]} Rxc7 {[%emt 0:00:01]} 31. Rc1 {[%emt 0:00:33]} Nd3 {[%emt 0:00:07]} 32. Rc2 {[%emt 0:00:04]} Rbc8 {[%emt 0:00:03]} 33. Rf1 {[%emt 0:07:09]} Kg6 {[%emt 0:10:46]} 34. Rg1+ {[%emt 0:01:22]} Kh7 {[%emt 0:00:09]} 0-1